fUSD/lending_fUSD_20240424
["ID","MTS","AMOUNT","RATE_DAILY","PERIOD"]
[323374054,1713940239005,-208.28548322,0.00012867,2]
[323374109,1713940239495,-2915.1611544,0.00012867,2]
[323374113,1713940239526,-59433.71047093,0.00012868,2]
[323374194,1713940240348,-1180.29148574,0.00012868,2]
[323374196,1713940240360,-1333.22574239,0.00012868,2]
[323374199,1713940240372,-3506.84700262,0.00012868,2]
[323374201,1713940240383,-374.73553,0.00012868,2]
[323374204,1713940240406,-557623.07637507,0.00012868,2]
[323374208,1713940240429,-1604.37915395,0.00012868,2]
[323374210,1713940240441,-512.0,0.00012868,2]
[323374213,1713940240460,-813.11641887,0.00012868,2]
[323374230,1713940240608,790.17713558,0.00011396,2]
[323374491,1713940242766,-33275.18190972,0.00012868,2]
[323374498,1713940242823,-6720.906114,0.00012868,2]
[323374506,1713940242887,-1581.52036189,0.00012868,2]
[323374514,1713940242945,-586017.52544157,0.00012868,2]
[323374872,1713940245805,-400.606206,0.00012868,2]
[323374876,1713940245817,-270.42728545,0.00012868,2]
[323374893,1713940245869,-188311.80162338,0.00012868,2]
[323374917,1713940246042,-1065.14542115,0.00012868,2]
[323374919,1713940246053,-667.61,0.00012868,2]
[323374960,1713940310268,267.22,9.948e-05,2]
[323374961,1713940327091,534.52036008,0.00011396,2]
[323374962,1713940327111,2000.0,0.00011396,2]
[323374963,1713940327133,1641.26577789,0.00011396,2]
[323374964,1713940451950,181.97342589,0.00011396,2]
[323374971,1713940576592,151.0,0.00019806,120]
[323374972,1713940799363,176.76079622,9.554e-05,2]
[323374975,1713940944027,151.0,0.00020469,120]
[323374976,1713941162442,-77.08920378,9.554e-05,2]
[323374982,1713941343466,241.15,9.514e-05,2]
[323374987,1713941380449,-159.82229971,0.00011273,2]
[323374988,1713941380470,-1096.4,0.00011337,2]
[323374989,1713941380497,-800.0,0.00011373,2]
[323374990,1713941380523,-250.0,0.00011417,2]
[323374991,1713941380544,-2000.0,0.00011424,3]
[323374992,1713941380567,-150.0,0.00011431,2]
[323374993,1713941380590,-5543.77770029,0.00011432,2]
[323374994,1713941382924,-5902.06229971,0.00011432,2]
[323374995,1713941382945,-722.5,0.00011434,2]
[323374996,1713941382966,-205.13,0.00011475,2]
[323374997,1713941382991,-266.6,0.00011489,2]
[323374998,1713941383013,-313.58,0.00011492,2]
[323374999,1713941383035,-200.0,0.00011532,2]
[323375000,1713941383061,-2390.12770029,0.00011532,2]
[323375001,1713941389698,-1062.65229971,0.00011532,2]
[323375002,1713941389719,-157.99,0.00011575,2]
[323375003,1713941389739,-462.82251375,0.0001158,2]
[323375004,1713941389758,-150.99,0.00011735,2]
[323375005,1713941389778,-241.15,0.00011778,2]
[323375006,1713941389800,-259.74,0.0001178,2]
[323375007,1713941389820,-2750.0,0.00012,2]
[323375008,1713941389840,-1000.0,0.00012,2]
[323375009,1713941389859,-196.5,0.00012055,2]
[323375010,1713941389882,-157.99,0.00012179,2]
[323375011,1713941389903,-358.534,0.00012216,2]
[323375012,1713941389926,-399.146,0.00012216,2]
[323375013,1713941389952,-195.0,0.00012216,2]
[323375014,1713941389976,-1100.0,0.000123,4]
[323375015,1713941389996,-1507.48518654,0.00012365,2]
[323375016,1713941391368,-9682.03081346,0.00012365,2]
[323375017,1713941391390,-317.96918654,0.000124,4]
[323375022,1713941431884,-535.1,0.000124,4]
[323375023,1713941431908,-380.03886704,0.000124,4]
[323375024,1713941432032,-540.88171398,0.000124,4]
[323375025,1713941432045,-526.01023244,0.000124,4]
[323375026,1713941432056,-473.98976756,0.000125,4]
[323375027,1713941432204,-2926.01023244,0.000125,4]
[323375028,1713941432214,-210.0,0.00012574,2]
[323375029,1713941432224,-4600.0,0.000126,4]
[323375030,1713941432235,-5700.0,0.000127,4]
[323375031,1713941432246,-164.03,0.00012719,2]
[323375032,1713941432257,-6283.05976756,0.00012741,2]
[323375072,1713941437867,-705.281867,0.00012741,2]
[323375075,1713941437880,-3714.54366207,0.00012741,2]
[323375077,1713941437891,-327.68370337,0.00012741,2]
[323375079,1713941437900,-217.3556958,0.00012768,2]
[323375088,1713941438193,-7282.6443042,0.00012768,2]
[323375090,1713941438204,-4857.3556958,0.00012768,2]
[323375093,1713941438215,-848.78041516,0.00012768,2]
[323375095,1713941438225,-283.59517805,0.0001277,2]
[323375097,1713941438234,-38.7429754,0.0001277,2]
[323375099,1713941438245,-112.2470246,0.0001277,2]
[323375101,1713941438256,-1114.14872,0.0001278,2]
[323375103,1713941438265,-283.59517802,0.00012782,2]
[323375105,1713941438274,-283.59517802,0.00012794,2]
[323375107,1713941438284,-800.0,0.00012795,2]
[323375109,1713941438293,-1100.0,0.000128,4]
[323375111,1713941438302,-155.0,0.000128,2]
[323375113,1713941438311,-283.59517802,0.00012805,2]
[323375114,1713941438321,-283.59517802,0.00012817,2]
[323375115,1713941438330,-283.59517802,0.00012829,2]
[323375116,1713941438340,-5706.13611094,0.00012834,2]
[323375117,1713941438349,-283.59517802,0.00012841,2]
[323375119,1713941438359,-2254.0,0.00012849,2]
[323375120,1713941438368,-529.0,0.00012849,2]
[323375122,1713941438377,-1114.14872,0.0001285,2]
[323375124,1713941438386,-283.59517802,0.00012853,2]
[323375126,1713941438395,-283.59517802,0.00012865,2]
[323375128,1713941438405,-273.00047994,0.00012866,2]
[323375170,1713941440720,-333.68734217,0.00012866,2]
[323375171,1713941440798,-1263.3557939,0.00012866,2]
[323375172,1713941440807,-266.02476876,0.00012867,2]
[323375173,1713941440825,-1561.41260897,0.00012867,2]
[323375174,1713941440836,-1771.03281681,0.00012868,2]
[323375175,1713941440933,-2297.26052,0.00012868,2]
[323375176,1713941440966,-261.166,0.00012868,2]
[323375180,1713941442986,-2968.23823805,0.00012868,2]
[323375181,1713941443158,-501.062185,0.00012868,2]
[323375195,1713941445933,-318.20638316,0.00012868,2]
[323375196,1713941445944,-293.85087668,0.00012868,2]
[323375197,1713941445956,-324.41479843,0.00012868,2]
[323375198,1713941446026,-318.32853496,0.00012868,2]
[323375199,1713941446053,-1071.08290829,0.00012868,2]
[323375206,1713941815412,498.24447323,0.000251,120]
[323375215,1713941894775,-363.81924561,0.0001185,2]
[323375216,1713941894798,-520.0,0.00011851,2]
[323375217,1713941894819,-2215.83251815,0.00011899,2]
[323375218,1713941894840,-3174.4711,0.000119,2]
[323375219,1713941894862,-183.98,0.00011974,2]
[323375220,1713941894885,-150.0,0.00011998,2]
[323375221,1713941894910,-2439.13332892,0.00011999,2]
[323375222,1713941894933,-150.0,0.00011999,2]
[323375223,1713941894955,-802.76380732,0.00012,2]
[323375224,1713941896705,-1799.77619268,0.00012,2]
[323375225,1713941896727,-938.1554142,0.00012,2]
[323375226,1713941896748,-481.33,0.00012048,2]
[323375227,1713941896768,-1293.76132614,0.00012223,2]
[323375228,1713941896793,-151.06,0.00012225,2]
[323375229,1713941896814,-5335.91706698,0.00012225,2]
[323375231,1713941913110,-10000.0,0.00012225,2]
[323375233,1713941949091,232.3,0.00010008,2]
[323375235,1713942255049,-155.0,0.00011832,2]
[323375236,1713942255071,-320.55,0.00011833,2]
[323375237,1713942255093,-584.0,0.00011839,2]
[323375238,1713942255117,-207.79,0.00011908,2]
[323375239,1713942255141,-183.98,0.00011921,2]
[323375240,1713942255163,-150.0,0.00011999,2]
[323375241,1713942255183,-2750.0,0.00012,2]
[323375242,1713942255204,-2114.0,0.00012,2]
[323375243,1713942255225,-2012.18,0.00012,2]
[323375244,1713942255245,-1522.5,0.00012225,2]
[323375245,1713942322191,-3141.57293302,0.00012225,2]
[323375246,1713942322491,-232.3,0.00012272,2]
[323375247,1713942322512,-2055.0,0.00012602,2]
[323375248,1713942322535,-507.0,0.00012602,2]
[323375249,1713942322556,-4064.12706698,0.00012768,2]
[323375250,1713942342371,-1102.97899824,0.00012513,2]
[323375251,1713942342392,-8897.02100176,0.00012768,2]
[323375257,1713942497978,209.07,0.00010062,2]
[323375270,1713942632015,-532.8,0.00011877,2]
[323375272,1713942632025,-213.28,0.00011887,2]
[323375274,1713942632034,-213.36,0.00011893,2]
[323375275,1713942632044,-209.07,0.00012326,2]
[323375276,1713942632054,-217.80423878,0.00012668,2]
[323375277,1713942632064,-217.80423876,0.00012717,2]
[323375278,1713942632073,-732.57958902,0.0001274,2]
[323375279,1713942632084,-10.18622098,0.0001274,2]
[323375280,1713942632093,-217.80423876,0.00012766,2]
[323375281,1713942632102,-98.9549952,0.00012768,2]
[323375282,1713942632332,-885.12333606,0.00012768,2]
[323375283,1713942632341,-170.15710682,0.00012768,2]
[323375284,1713942632350,-207.70836151,0.0001277,2]
[323375285,1713942632359,-150.0,0.00012775,2]
[323375286,1713942632368,-1371.49614842,0.00012776,2]
[323375287,1713942632379,-1607.05575158,0.00012776,2]
[323375288,1713942632389,-155.0,0.000128,2]
[323375289,1713942632398,-170.15710681,0.00012801,2]
[323375290,1713942632408,-170.15710681,0.00012834,2]
[323375291,1713942632417,-207.7083615,0.00012835,2]
[323375292,1713942632428,-204.99865099,0.00012858,2]
[323375293,1713942632439,-28.34416079,0.00012865,2]
[323375295,1713942632455,-217.84583921,0.00012865,2]
[323375297,1713942632465,-155.61842241,0.00012866,2]
[323375299,1713942632476,-404.63791958,0.00012866,2]
[323375301,1713942632485,-617.4317903,0.00012866,2]
[323375308,1713942632546,-736.67899653,0.00012866,2]
[323375310,1713942632556,-497.70685094,0.00012866,2]
[323375311,1713942632568,-1495.25398465,0.00012866,2]
[323375312,1713942632579,-1065.30512253,0.00012866,2]
[323375313,1713942632588,-1303.45023982,0.00012867,2]
[323375314,1713942632609,-530.0,0.00012867,2]
[323375315,1713942632622,-1280.64064994,0.00012867,2]
[323375316,1713942632631,-999.9462284,0.00012867,2]
[323375325,1713942638014,-3375.57249257,0.00012867,2]
[323375327,1713942638023,-1558.77100647,0.00012867,2]
[323375329,1713942638032,-255.3668917,0.00012867,2]
[323375330,1713942638042,-7047.38273547,0.00012867,2]
[323375333,1713942638054,-47764.68160834,0.00012867,2]
[323375347,1713942638228,-5950.14032621,0.00012867,2]
[323375349,1713942638240,-275.68,0.00012867,2]
[323375353,1713942638340,-1623.23885334,0.00012867,2]
[323375547,1713942640189,-207.33406528,0.0001277,2]
[323375549,1713942640198,-187.38703362,0.00012867,2]
[323375564,1713942640450,-317.08699596,0.00012867,2]
[323375566,1713942640463,-1140.95499999,0.00012867,2]
[323375863,1713942643274,-14064.05000027,0.00012867,2]
[323375897,1713942646984,-356.4561,0.0001277,2]
[323375898,1713942647016,-485.27119791,0.0001277,2]
[323375903,1713943012215,188.16,9.914e-05,2]
[323375904,1713943146345,362.67130259,9.914e-05,2]
[323375913,1713943515389,199.66,9.667e-05,2]
[323375914,1713943696537,238.51,0.000106,2]
[323375915,1713943807661,10000.0,0.00025101,120]
[323375919,1713943823945,8208.0,0.00025101,120]
[323375931,1713943832177,-622.9016,0.000109,2]
[323375932,1713943832187,-839.34053851,0.000109,2]
[323375933,1713943832198,-656.10899353,0.000109,2]
[323375934,1713943832280,-1027.86553392,0.000109,2]
[323375935,1713943832289,-2311.0,0.00011,2]
[323375936,1713943832298,-200.0,0.000115,2]
[323375937,1713943832308,-153.7,0.00011532,2]
[323375938,1713943832317,-797.36,0.00011543,2]
[323375939,1713943832327,-150.0,0.00011554,2]
[323375940,1713943832336,-23880.0,0.00011555,2]
[323375941,1713943832345,-1507.74,0.0001158,2]
[323375942,1713943832354,-426.24,0.00011585,2]
[323375943,1713943832364,-251.99,0.00011588,2]
[323375944,1713943832373,-1430.07,0.00011598,2]
[323375945,1713943832383,-6145.23,0.00011702,2]
[323375946,1713943832393,-573.76,0.00011756,2]
[323375947,1713943832402,-5482.26,0.0001179,2]
[323375948,1713943832412,-13747.86179536,0.0001179,2]
[323375949,1713943832447,-1297.24820464,0.0001179,2]
[323375950,1713943832456,-172.67,0.00011874,2]
[323375951,1713943832465,-199.66,0.00011931,2]
[323375952,1713943832475,-696.13733799,0.00012,2]
[323375953,1713943832488,-201.39266201,0.00012,2]
[323375954,1713943832497,-153.7,0.00012133,2]
[323375955,1713943832507,-300.0,0.000123,4]
[323375956,1713943832517,-538.01,0.000123,2]
[323375957,1713943832527,-499.99,0.000123,2]
[323375958,1713943832536,-354.16,0.000123,2]
[323375959,1713943832546,-419.16,0.000124,2]
[323375960,1713943832556,-150.0,0.000124,2]
[323375961,1713943832566,-150.0,0.000124,2]
[323375962,1713943832576,-419.16,0.000124,2]
[323375963,1713943832586,-419.16,0.000124,2]
[323375964,1713943832595,-150.0,0.000124,2]
[323375965,1713943832604,-150.0,0.000124,2]
[323375966,1713943832613,-418.16,0.000124,2]
[323375967,1713943832623,-600.0,0.000124,4]
[323375968,1713943832633,-900.0,0.000125,4]
[323375969,1713943832644,-396.68,0.00012552,2]
[323375970,1713943832656,-67.43373451,0.000126,4]
[323375986,1713943838261,-1132.56626549,0.000126,4]
[323375989,1713943838275,-782.72753451,0.00012602,2]
[323376001,1713943838440,-845.02,0.00012602,2]
[323376008,1713943838534,-378.88143139,0.00012602,2]
[323376229,1713943840783,-31.3710341,0.00012602,2]
[323376231,1713943840792,-166.83366724,0.00012615,2]
[323376233,1713943840801,-1500.0,0.000127,4]
[323376235,1713943840810,-210.0,0.00012709,2]
[323376237,1713943840820,-618.9715,0.0001274,2]
[323376239,1713943840832,-207.7083615,0.0001277,2]
[323376241,1713943840847,-1621.46960435,0.0001277,2]
[323376243,1713943840856,-167.19941856,0.0001277,2]
[323376245,1713943840866,-454.45972982,0.00012773,2]
[323376248,1713943840878,-450.01300863,0.00012773,2]
[323376374,1713943843333,-405.61302134,0.00012773,2]
[323376377,1713943843345,-311.38384455,0.00012773,2]
[323376378,1713943843356,-813.433106,0.00012776,2]
[323376379,1713943843673,-808.03649834,0.00012776,2]
[323376380,1713943843683,-330.69478115,0.000128,2]
[323376381,1713943843692,-700.83617055,0.000128,2]
[323376404,1713943846573,-166.23,0.00012151,2]
[323376405,1713943846582,-239.22780632,0.000128,2]
[323376406,1713943846605,-858.72191135,0.000128,2]
[323376407,1713943846617,-6707.29500967,0.000128,2]
[323376408,1713943846628,-426.06983525,0.000128,2]
[323376413,1713943846706,-1351.41252935,0.000128,2]
[323376566,1713944024741,199.56,0.00010043,2]
[323376572,1713944556788,189.58,9.956e-05,2]
[323376573,1713944597951,22810.01869741,0.000105,2]
[323376574,1713944604420,3370.47,0.0001,2]
[323376575,1713944604442,4000.0,0.0001,2]
[323376576,1713944604464,4000.0,0.0001,2]
[323376577,1713944604486,4000.0,0.0001,2]
[323376578,1713944604508,4000.0,0.0001,2]
[323376579,1713944604530,4000.0,0.0001,2]
[323376580,1713944604550,4000.0,0.0001,2]
[323376581,1713944604572,4000.0,0.0001,2]
[323376582,1713944604594,4000.0,0.0001,2]
[323376583,1713944604616,4000.0,0.0001,2]
[323376584,1713944604641,4000.0,0.0001,2]
[323376585,1713944604665,4000.0,0.0001,2]
[323376586,1713944604689,4000.0,0.0001,2]
[323376587,1713944604712,4000.0,0.0001,2]
[323376588,1713944604732,4000.0,0.0001,2]
[323376589,1713944604754,4000.0,0.0001,2]
[323376590,1713944604775,4000.0,0.0001,2]
[323376591,1713944604798,4000.0,0.0001,2]
[323376592,1713944604821,4000.0,0.0001,2]
[323376593,1713944604844,4000.0,0.0001,2]
[323376600,1713945031380,-259.1,9.745e-05,2]
[323376601,1713945031600,-287.37338502,9.745e-05,2]
[323376633,1713945037659,-1197.38701465,9.745e-05,2]
[323376649,1713945039544,-346.16494564,9.745e-05,2]
[323376650,1713945039597,-4532.61476969,9.745e-05,2]
[323376651,1713945039607,-2216.71267551,9.843e-05,2]
[323376652,1713945039616,-150.0,9.999e-05,2]
[323376653,1713945039626,-8953.62278677,0.0001,2]
[323376654,1713945039872,-700.0,0.0001,2]
[323376655,1713945042662,-327.29498152,0.0001,2]
[323376656,1713945042721,-4037.77387647,0.0001,2]
[323376667,1713945045522,-332.55378153,0.0001,2]
[323376694,1713946231774,-818.3624996,9.284e-05,2]
[323376695,1713946231787,-267.23393513,9.284e-05,2]
[323376696,1713946231807,-392.21201561,9.284e-05,2]
[323376697,1713946231817,-363.81924561,9.285e-05,2]
[323376698,1713946231827,-242.5,9.295e-05,2]
[323376699,1713946231837,-424.1776656,9.578e-05,2]
[323376700,1713946231858,-408.89901047,9.578e-05,2]
[323376701,1713946231867,-341.0,9.994e-05,2]
[323376702,1713946231877,-150.0,9.998e-05,2]
[323376703,1713946231887,-306.72249725,9.999e-05,2]
[323376704,1713946231974,-536.39156508,9.999e-05,2]
[323376708,1713946232017,-156.88593767,9.999e-05,2]
[323376710,1713946232027,-2128.40234857,9.999e-05,2]
[323376717,1713946232144,-326.97252501,9.999e-05,2]
[323376718,1713946232154,-213.90918897,9.999e-05,2]
[323376740,1713946237743,-832.95377455,9.999e-05,2]
[323376746,1713946237843,-1309.17453805,9.999e-05,2]
[323376747,1713946237852,-2169.25303587,0.0001,2]
[323376748,1713946237864,-885.30001992,0.0001,2]
[323376749,1713946237912,-3213.09999998,0.0001,2]
[323376750,1713946237955,-267.4029094,0.0001,2]
[323376755,1713946239656,-1322.96064182,0.0001,2]
[323376756,1713946239700,-5608.51081299,0.0001,2]
[323376757,1713946239756,-361.80031718,0.0001,2]
[323376758,1713946239768,-69639.93813914,0.0001,2]
[323376759,1713946239777,-437.11568116,0.0001,2]
[323376760,1713946239786,-64515.10119964,0.0001,2]
[323376761,1713946240022,-626.59166763,0.0001,2]
[323376762,1713946240034,-16253.2200958,0.0001,2]
[323376763,1713946240046,-5000.0,0.0001,2]
[323376764,1713946240056,-515.80959,0.000105,2]
[323376765,1713946240066,-210.0,0.00010998,2]
[323376766,1713946240076,-200.0,0.00010998,2]
[323376767,1713946240086,-268.22,0.00011014,2]
[323376768,1713946240095,-152.52,0.00011053,2]
[323376769,1713946240104,-1543.14,0.00011062,2]
[323376770,1713946240114,-479.24,0.00011135,2]
[323376771,1713946240123,-152.52,0.00011168,2]
[323376772,1713946240132,-208.84,0.00011209,2]
[323376773,1713946240141,-341.0,0.00011244,2]
[323376774,1713946240151,-152.52,0.00011284,2]
[323376775,1713946240160,-152.52,0.00011399,2]
[323376776,1713946240169,-1000.0,0.00011432,2]
[323376777,1713946240178,-152.52,0.00011514,2]
[323376778,1713946240187,-242.5,0.00011559,2]
[323376779,1713946240197,-659.0,0.00011559,2]
[323376780,1713946240206,-245.470219,0.00011564,2]
[323376781,1713946240215,-152.52,0.00011629,2]
[323376782,1713946240224,-172.67,0.00011715,2]
[323376783,1713946240233,-15895.61751035,0.00011778,2]
[323376784,1713946240245,-3425.68668845,0.00011778,2]
[323376791,1713946242994,-655.16092701,0.00011778,2]
[323376810,1713946245740,-2648.388249,0.00011778,2]
[323376811,1713946245827,-13.51987189,0.00011778,2]
[323376840,1713947431863,-332.562196,8.944e-05,2]
[323376841,1713947432059,-898.94484595,8.944e-05,2]
[323376842,1713947432068,-238.25600323,8.944e-05,2]
[323376843,1713947432078,-980.22641082,8.945e-05,2]
[323376844,1713947432087,-533.20177821,8.946e-05,2]
[323376845,1713947432098,-19443.11646185,8.946e-05,2]
[323376846,1713947432107,-200.0,8.95e-05,7]
[323376847,1713947432117,-388.175957,8.953e-05,2]
[323376848,1713947432126,-2819.35412705,9e-05,2]
[323376849,1713947432135,-218.25,9.413e-05,2]
[323376850,1713947432145,-1294.06229619,9.498e-05,2]
[323376851,1713947432154,-150.0,9.997e-05,2]
[323376852,1713947432163,-343.3536616,9.998e-05,2]
[323376853,1713947432173,-409.29209836,9.998e-05,2]
[323376854,1713947432182,-2355.5229007,9.998e-05,2]
[323376855,1713947432191,-1344.49440147,9.998e-05,2]
[323376856,1713947432201,-164.51530542,9.998e-05,2]
[323376857,1713947432210,-360.70036463,9.998e-05,2]
[323376858,1713947432220,-2360.06922033,9.998e-05,2]
[323376860,1713947432230,-167.72474978,9.998e-05,2]
[323376863,1713947432239,-376.85428405,9.998e-05,2]
[323376864,1713947432248,-975.76806898,9.998e-05,2]
[323376866,1713947432257,-169.21219071,9.998e-05,2]
[323376870,1713947432266,-1776.49143919,9.998e-05,2]
[323376873,1713947432276,-227.64901058,9.999e-05,2]
[323376876,1713947432285,-2067.3328982,9.999e-05,2]
[323376881,1713947432304,-539.46,9.999e-05,2]
[323376885,1713947432331,-204.54116769,9.999e-05,2]
[323376887,1713947432341,-603.88883231,9.999e-05,2]
[323376895,1713947432445,-2239.51116769,9.999e-05,2]
[323376897,1713947432454,-274.37550769,0.0001,2]
[323376899,1713947432475,-668.1020005,0.0001,2]
[323376900,1713947432499,-501.76730164,0.0001,2]
[323376918,1713947437791,-6617.0,0.0001,2]
[323376924,1713947437897,-845.5993675,0.0001,2]
[323376925,1713947438014,-308.13232719,0.0001,2]
[323376928,1713947439980,-10785.02349548,0.0001,2]
[323376929,1713947439989,-5000.0,0.0001,2]
[323376930,1713947439999,-19499.1617316,0.0001,2]
[323376931,1713947440053,-1641.30252,0.0001,2]
[323376932,1713947440085,-519.20845282,0.0001,2]
[323376933,1713947440198,-6432.3389999,0.0001,2]
[323376957,1713947442966,-1892.56313245,0.0001,2]
[323376958,1713947442978,-926.12701985,0.0001,2]
[323376959,1713947443020,-1092.59470012,0.0001,2]
[323376960,1713947443033,-325.57130912,0.0001,2]
[323376961,1713947443108,-407.36548027,0.0001,2]
[323376962,1713947443172,-2599.63704,0.0001,2]
[323376963,1713947443223,-31547.5508845,0.0001,2]
[323376964,1713947443236,-5893.04789687,0.0001,2]
[323376973,1713947445865,-629.27928532,0.0001,2]
[323376974,1713947445911,-528.93631362,0.0001,2]
[323376975,1713947446055,-1006.8,0.0001,2]
[323376976,1713947446115,-790.12443875,0.0001,2]
[323376977,1713947446126,-4253.92505037,0.0001,2]
[323376978,1713947446138,-1237.19006972,0.0001,2]
[323376979,1713947446174,-5570.45453968,0.0001,2]
[323376981,1713948056212,230.91,8.219e-05,2]
[323376982,1713948150173,155.0,8.219e-05,2]
[323376983,1713948165682,155.0,8.219e-05,2]
[323376984,1713948175553,920.0,0.00019,29]
[323376985,1713948183678,155.0,8.219e-05,2]
[323376986,1713948203679,155.0,8.219e-05,2]
[323376987,1713948224124,192.4513692,8.219e-05,2]
[323376989,1713948322942,1000.0,0.00025,120]
[323376992,1713948541502,219.36,8.219e-05,2]
[323376999,1713948631989,-411.26103104,8.754e-05,2]
[323377000,1713948632045,-649.65013508,8.754e-05,2]
[323377001,1713948632055,-183.85197794,8.755e-05,2]
[323377002,1713948632066,-457.76319091,8.755e-05,2]
[323377003,1713948632076,-81.92701017,8.755e-05,2]
[323377004,1713948632088,-73.07298983,8.755e-05,2]
[323377005,1713948632097,-363.28527503,8.756e-05,2]
[323377006,1713948632107,-155.0,8.757e-05,2]
[323377007,1713948632116,-378.09826051,8.759e-05,2]
[323377008,1713948632127,-3367.93087916,8.759e-05,2]
[323377009,1713948632139,-1169.32315803,8.759e-05,2]
[323377010,1713948632286,-631.71209379,8.759e-05,2]
[323377011,1713948632295,-150.0,8.765e-05,2]
[323377012,1713948632308,-234.09,8.783e-05,2]
[323377013,1713948632317,-170.75,8.848e-05,2]
[323377014,1713948632326,-170.75,9.002e-05,2]
[323377015,1713948632336,-259.01208478,9.116e-05,2]
[323377016,1713948632348,-740.98791522,9.116e-05,2]
[323377017,1713948632357,-170.75,9.156e-05,2]
[323377018,1713948632366,-1500.0,9.21e-05,2]
[323377020,1713948632376,-972.79,9.264e-05,2]
[323377022,1713948632386,-170.75,9.31e-05,2]
[323377024,1713948632395,-1397.65,9.361e-05,2]
[323377025,1713948632404,-400.0,9.652e-05,2]
[323377027,1713948632414,-499.99,9.67e-05,2]
[323377029,1713948632423,-500.0,9.92e-05,2]
[323377030,1713948632432,-1416.69131341,9.997e-05,2]
[323377031,1713948632443,-1507.80432703,9.997e-05,2]
[323377032,1713948632455,-753.66321503,9.997e-05,2]
[323377033,1713948632477,-2846.60810757,9.997e-05,2]
[323377034,1713948632567,-8602.47578454,9.997e-05,2]
[323377035,1713948632577,-1871.46906885,9.997e-05,2]
[323377036,1713948632586,-155.4177329,9.998e-05,2]
[323377037,1713948632597,-263.6939155,9.998e-05,2]
[323377038,1713948632606,-190.55526033,9.998e-05,2]
[323377039,1713948632615,-804.48492879,9.998e-05,2]
[323377040,1713948632624,-972.67879345,9.998e-05,2]
[323377041,1713948632633,-30631.30356662,9.998e-05,2]
[323377042,1713948632642,-325.09234905,9.998e-05,2]
[323377043,1713948632652,-1787.80383212,9.998e-05,2]
[323377044,1713948632661,-155.40931565,9.998e-05,2]
[323377045,1713948632670,-1994.15387109,9.998e-05,2]
[323377046,1713948632679,-157.02298169,9.998e-05,2]
[323377047,1713948632689,-1852.51163226,9.998e-05,2]
[323377048,1713948632699,-155.52724868,9.998e-05,2]
[323377049,1713948632708,-222.86841817,9.998e-05,2]
[323377050,1713948632717,-26013.09487062,9.999e-05,2]
[323377051,1713948632727,-156.72262636,9.999e-05,2]
[323377052,1713948632736,-63089.6658749,0.0001,2]
[323377062,1713948637983,-238.25600323,8.753e-05,2]
[323377063,1713948637993,-1273.04672183,9.998e-05,2]
[323377064,1713948638005,-116.37184985,9.998e-05,2]
[323377065,1713948638014,-53210.10845015,0.0001,2]
[323377066,1713948638042,-846.33078448,0.0001,2]
[323377067,1713948638093,-19946.0801257,0.0001,2]
[323377068,1713948638149,-1297.81907699,0.0001,2]
[323377069,1713948638204,-3262.59999997,0.0001,2]
[323377070,1713948638297,-1735.75668307,0.0001,2]
[323377071,1713948638347,-994.52,0.0001,2]
[323377078,1713948640242,-417.18296046,0.0001,2]
[323377079,1713948640298,-87086.14568778,0.0001,2]
[323377080,1713948640468,-653.115,0.0001,2]
[323377090,1713948643333,-338.72698102,0.0001,2]
[323377124,1713948645999,-385.40562752,0.0001,2]
[323377131,1713948646054,-982.45050727,0.0001,2]
[323377133,1713948646067,-666.53,0.0001,2]
[323377136,1713948646107,-999.02301719,0.0001,2]
[323377138,1713948646119,-603.7514276,0.0001,2]
[323377139,1713948646131,-623.31083077,0.0001,2]
[323377140,1713948646188,-5092.2016,0.0001,2]
[323377141,1713948646243,-411.5795512,0.0001,2]
[323377148,1713949421808,-238.25600323,9.139e-05,2]
[323377149,1713949421832,-641.61516885,9.14e-05,2]
[323377150,1713949421854,-227.54,9.151e-05,2]